[Event "Chinese Team-ch Men 2025"]
[Site "Zhang Jiakou Hebei"]
[Date "2025.04.30"]
[Round "6.19"]
[White "Xia, Jinnan"]
[Black "Fan, Huifeng"]
[Result "1/2-1/2"]
[Annotator "ChessBase"]
[ECO "E15"]
[WhiteElo "1959"]
[BlackElo "2178"]
[PlyCount "71"]
[EventDate "2025.04.26"]
[EventType "team-tourn"]
[EventCountry "CHN"]
[SourceTitle "playchess.com"]
[Source "ChessBase"]
[SourceQuality "1"]
[TimeControl "5400+30"]

1. d4 {[%emt 0:00:01]} Nf6 {[%emt 0:00:06]} 2. c4 {[%emt 0:00:03]} e6 {[%emt 0:00:05]} 3. Nf3 {[%emt 0:00:03]} b6 {[%emt 0:00:33]} 4. g3 {[%emt 0:00:06]} Ba6 {[%emt 0:01:09]} 5. b3 {[%emt 0:00:08]} Bb4+ {[%emt 0:00:34]} 6. Bd2 {[%emt 0:00:10]} Be7 {[%emt 0:00:09]} 7. Bg2 {[%emt 0:00:04]} O-O {[%emt 0:01:06]} 8. O-O {[%emt 0:00:39]} d5 {[%emt 0:00:06]} 9. Ne5 {[%emt 0:04:12]} Bb7 {[%emt 0:14:13]} 10. Nc3 {[%emt 0:06:46]} Nbd7 {[%emt 0:06:44]} 11. f4 {[%emt 0:08:29]} c5 {[%emt 0:10:43]} 12. e3 {[%emt 0:00:53]} cxd4 {[%emt 0:10:47]} 13. exd4 {[%emt 0:00:05]} Ne4 {[%emt 0:05:52]} 14. Nxe4 {[%emt 0:10:53]} dxe4 {[%emt 0:00:08]} 15. Nxd7 {[%emt 0:00:34]} Qxd7 {[%emt 0:00:08]} 16. Be3 {[%emt 0:00:03]} f5 {[%emt 0:00:43]} 17. Qd2 {[%emt 0:02:37]} Bf6 {[%emt 0:01:26]} 18. Rfd1 {[%emt 0:01:41]} Rfd8 {[%emt 0:02:13]} 19. b4 {[%emt 0:08:58]} Rac8 {[%emt 0:08:24]} 20. Bf1 {[%emt 0:02:12]} Qe7 {[%emt 0:10:36]} 21. b5 {[%emt 0:13:37]} Rd7 {[%emt 0:00:48]} 22. Qf2 {[%emt 0:04:07]} Rcd8 {[%emt 0:01:10]} 23. Rd2 {[%emt 0:04:43]} g5 {[%emt 0:03:07]} 24. Rad1 {[%emt 0:01:55]} gxf4 {[%emt 0:01:09]} 25. Qxf4 {[%emt 0:01:00]} Qg7 {[%emt 0:02:19]} 26. c5 {[%emt 0:09:14]} bxc5 {[%emt 0:07:29]} 27. dxc5 {[%emt 0:00:02]} Rxd2 {[%emt 0:00:38]} 28. Rxd2 {[%emt 0:00:20]} Rxd2 {[%emt 0:00:14]} 29. Bxd2 {[%emt 0:00:04]} Be5 {[%emt 0:03:00]} 30. Qf2 {[%emt 0:01:31]} Bd5 {[%emt 0:00:11]} 31. c6 {[%emt 0:08:33]} h5 {[%emt 0:00:07]} 32. Bf4 {[%emt 0:04:39]} Bd4 {[%emt 0:09:23]} 33. Be3 {[%emt 0:00:03]} Be5 {[%emt 0:00:06]} 34. Bf4 {[%emt 0:01:10]} Bd4 {[%emt 0:01:03]} 35. Be3 {[%emt 0:00:03]} Be5 {[%emt 0:00:25]} 36. Bf4 {[%emt 0:00:04]} 1/2-1/2

[Event "Chinese Team-ch Men 2025"]
[Site "Zhang Jiakou Hebei"]
[Date "2025.04.30"]
[Round "6.20"]
[White "Qu, Yanqiao"]
[Black "Pan, Xizhi"]
[Result "1/2-1/2"]
[Annotator "NA"]
[ECO "B38"]
[WhiteElo "1969"]
[BlackElo "1821"]
[PlyCount "63"]
[EventDate "2025.04.26"]
[EventType "team-tourn"]
[EventCountry "CHN"]
[SourceTitle "playchess.com"]
[Source "ChessBase"]
[SourceQuality "1"]
[TimeControl "5400+30"]

1. e4 {[%emt 0:00:10]} c5 {[%emt 0:00:32]} 2. Nf3 {[%emt 0:00:13]} g6 {[%emt 0:00:11]} 3. c4 {[%emt 0:01:45]} Bg7 {[%emt 0:02:42]} 4. d4 {[%emt 0:01:01]} cxd4 {[%emt 0:02:07]} 5. Nxd4 {[%emt 0:00:11]} Nc6 {[%emt 0:00:55]} 6. Be3 {[%emt 0:00:37]} Nf6 {[%emt 0:01:29]} 7. Nc3 {[%emt 0:00:10]} O-O {[%emt 0:00:41]} 8. Be2 {[%emt 0:00:25]} Qa5 {[%emt 0:10:19]} 9. O-O {[%emt 0:04:40]} d6 {[%emt 0:02:29]} 10. f3 {[%emt 0:01:18]} Nxd4 {[%emt 0:03:02]} 11. Bxd4 {[%emt 0:01:27]} Be6 {[%emt 0:01:40]} 12. Nd5 {[%emt 0:26:18]} Bxd5 {[%emt 0:00:14]} 13. exd5 {[%emt 0:04:10]} Nh5 {[%emt 0:03:14]} 14. f4 {[%emt 0:02:21]} Bxd4+ {[%emt 0:01:29]} 15. Qxd4 {[%emt 0:00:01]} Ng7 {[%emt 0:00:02]} 16. Bd3 {[%emt 0:08:42]} Rac8 {[%emt 0:02:36]} 17. b4 {[%emt 0:04:09]} Qxb4 {[%emt 0:04:26]} 18. Rab1 {[%emt 0:01:00]} Qa5 {[%emt 0:01:56]} 19. Rxb7 {[%emt 0:00:37]} Rc7 {[%emt 0:00:23]} 20. Rb5 {[%emt 0:02:45]} Qxa2 {[%emt 0:01:05]} 21. f5 {[%emt 0:10:05]} Qd2 {[%emt 0:03:09]} 22. Rb2 {[%emt 0:03:06]} Qg5 {[%emt 0:01:47]} 23. Rbf2 {[%emt 0:03:15]} gxf5 {[%emt 0:07:19]} 24. Bxf5 {[%emt 0:01:16]} Nxf5 {[%emt 0:00:27]} 25. Rxf5 {[%emt 0:00:02]} Qg7 {[%emt 0:00:00]} 26. Qh4 {[%emt 0:01:12]} f6 {[%emt 0:02:04]} 27. R5f3 {[%emt 0:06:46]} Kh8 {[%emt 0:00:31]} 28. Rg3 {[%emt 0:00:03]} Qf7 {[%emt 0:00:09]} 29. Qd4 {[%emt 0:00:27]} Rg8 {[%emt 0:00:35]} 30. Ra3 {[%emt 0:01:43]} Qh5 {[%emt 0:01:29]} 31. Rxa7 {[%emt 0:01:42]} Rxa7 {[%emt 0:00:41]} 32. Qxa7 {[%emt 0:00:01]} 1/2-1/2

[Event "Chinese Team-ch Men 2025"]
[Site "Zhang Jiakou Hebei"]
[Date "2025.04.30"]
[Round "6.21"]
[White "Yu, Shi"]
[Black "Yu, Shaoteng"]
[Result "0-1"]
[Annotator "ChessBase"]
[ECO "A46"]
[WhiteElo "1973"]
[BlackElo "2480"]
[PlyCount "112"]
[EventDate "2025.04.26"]
[EventType "team-tourn"]
[EventCountry "CHN"]
[SourceTitle "playchess.com"]
[Source "ChessBase"]
[SourceQuality "1"]
[TimeControl "5400+30"]

1. d4 {[%emt 0:00:03]} e6 {[%emt 0:00:12]} 2. Nf3 {[%emt 0:00:05]} Nf6 {[%emt 0:00:29]} 3. g3 {[%emt 0:01:05]} d5 {[%emt 0:02:33]} 4. Bg2 {[%emt 0:00:44]} b5 {[%emt 0:00:35]} 5. O-O {[%emt 0:00:15]} Bb7 {[%emt 0:00:31]} 6. a4 {[%emt 0:00:58]} b4 {[%emt 0:00:05]} 7. c4 {[%emt 0:01:23]} bxc3 {[%emt 0:01:51]} 8. bxc3 {[%emt 0:00:31]} c5 {[%emt 0:01:34]} 9. Ba3 {[%emt 0:00:56]} Nbd7 {[%emt 0:02:28]} 10. Nbd2 {[%emt 0:01:15]} Be7 {[%emt 0:02:12]} 11. Qc2 {[%emt 0:08:49]} Rc8 {[%emt 0:02:37]} 12. Qd3 {[%emt 0:08:46]} O-O {[%emt 0:01:54]} 13. Rfb1 {[%emt 0:01:29]} Qc7 {[%emt 0:01:45]} 14. e3 {[%emt 0:05:30]} Rfe8 {[%emt 0:05:14]} 15. Rb2 {[%emt 0:09:56]} Ne4 {[%emt 0:19:33]} 16. Nxe4 {[%emt 0:10:14]} dxe4 {[%emt 0:00:00]} 17. Qb1 {[%emt 0:00:07]} Bc6 {[%emt 0:00:00]} 18. Nd2 {[%emt 0:00:52]} f5 {[%emt 0:00:00]} 19. Bf1 {[%emt 0:03:47]} Nb6 {[%emt 0:02:55]} 20. Bb5 {[%emt 0:17:00]} Bxb5 {[%emt 0:01:05]} 21. Rxb5 {[%emt 0:04:35]} cxd4 {[%emt 0:02:51]} 22. cxd4 {[%emt 0:01:27]} Bxa3 {[%emt 0:07:58]} 23. Rxa3 {[%emt 0:00:07]} Qc1+ {[%emt 0:03:03]} 24. Qxc1 {[%emt 0:00:07]} Rxc1+ {[%emt 0:00:02]} 25. Kg2 {[%emt 0:00:59]} Rc2 {[%emt 0:01:19]} 26. Nf1 {[%emt 0:01:32]} Rec8 {[%emt 0:01:20]} 27. a5 {[%emt 0:02:00]} Nd5 {[%emt 0:07:33]} 28. Rab3 {[%emt 0:01:06]} R8c7 {[%emt 0:03:12]} 29. Rb2 {[%emt 0:01:47]} a6 {[%emt 0:03:18]} 30. Rb8+ {[%emt 0:01:42]} Kf7 {[%emt 0:01:28]} 31. Rxc2 {[%emt 0:00:19]} Rxc2 {[%emt 0:00:02]} 32. Ra8 {[%emt 0:00:42]} Nb4 {[%emt 0:00:54]} 33. Rb8 {[%emt 0:07:30]} Nd3 {[%emt 0:00:25]} 34. Rb6 {[%emt 0:00:08]} Rxf2+ {[%emt 0:00:15]} 35. Kg1 {[%emt 0:02:22]} Ra2 {[%emt 0:02:17]} 36. Rxa6 {[%emt 0:00:00]} Ne1 {[%emt 0:00:42]} 37. Kh1 {[%emt 0:00:27]} Nf3 {[%emt 0:00:30]} 38. Rb6 {[%emt 0:02:16]} Rxa5 {[%emt 0:01:22]} 39. Rb2 {[%emt 0:00:33]} Ra1 {[%emt 0:00:59]} 40. Kg2 {[%emt 0:00:23]} Ne1+ {[%emt 0:00:47]} 41. Kg1 {[%emt 0:00:06]} Kf6 {[%emt 0:00:18]} 42. h3 {[%emt 0:00:45]} g5 {[%emt 0:01:30]} 43. Rf2 {[%emt 0:01:26]} Ke7 {[%emt 0:01:15]} 44. Rb2 {[%emt 0:00:48]} Kd6 {[%emt 0:00:35]} 45. Rf2 {[%emt 0:00:29]} Kd5 {[%emt 0:00:29]} 46. Re2 {[%emt 0:03:45]} Kc4 {[%emt 0:01:56]} 47. Kf2 {[%emt 0:00:33]} Nd3+ {[%emt 0:00:30]} 48. Kg2 {[%emt 0:00:27]} Kc3 {[%emt 0:00:25]} 49. Kg1 {[%emt 0:00:11]} h6 {[%emt 0:03:32]} 50. Kg2 {[%emt 0:01:13]} h5 {[%emt 0:04:28]} 51. Kg1 {[%emt 0:00:22]} g4 {[%emt 0:00:18]} 52. hxg4 {[%emt 0:00:19]} hxg4 {[%emt 0:00:06]} 53. Kg2 {[%emt 0:00:19]} Rc1 {[%emt 0:00:41]} 54. Kg1 {[%emt 0:00:29]} Rc2 {[%emt 0:01:18]} 55. Rxc2+ {[%emt 0:00:18]} Kxc2 {[%emt 0:00:01]} 56. Kg2 {[%emt 0:00:12]} Kd1 {[%emt 0:00:25]} 0-1

[Event "Chinese Team-ch Men 2025"]
[Site "Zhang Jiakou Hebei"]
[Date "2025.04.30"]
[Round "6.22"]
[White "Jiang, Haochen"]
[Black "Liu, Junyi"]
[Result "1-0"]
[Annotator "ChessBase"]
[ECO "E73"]
[WhiteElo "2441"]
[BlackElo "1714"]
[PlyCount "39"]
[EventDate "2025.04.26"]
[EventType "team-tourn"]
[EventCountry "CHN"]
[SourceTitle "playchess.com"]
[Source "ChessBase"]
[SourceQuality "1"]
[TimeControl "5400+30"]

1. c4 {[%emt 0:00:08]} Nf6 {[%emt 0:00:40]} 2. Nc3 {[%emt 0:00:04]} g6 {[%emt 0:00:15]} 3. d4 {[%emt 0:00:14]} Bg7 {[%emt 0:00:04]} 4. e4 {[%emt 0:00:45]} d6 {[%emt 0:00:05]} 5. Be2 {[%emt 0:01:31]} O-O {[%emt 0:03:55]} 6. Be3 {[%emt 0:00:28]} e5 {[%emt 0:02:10]} 7. d5 {[%emt 0:00:44]} a5 {[%emt 0:00:39]} 8. g4 {[%emt 0:01:58]} Na6 {[%emt 0:02:58]} 9. g5 {[%emt 0:01:43]} Ne8 {[%emt 0:00:21]} 10. h4 {[%emt 0:05:10]} f5 {[%emt 0:06:42]} 11. f3 {[%emt 0:03:10]} Nc5 {[%emt 0:02:17]} 12. Qc2 {[%emt 0:00:37]} f4 {[%emt 0:03:23]} 13. Bf2 {[%emt 0:00:43]} c6 {[%emt 0:00:35]} 14. O-O-O {[%emt 0:00:54]} Na6 {[%emt 0:03:58]} 15. c5 {[%emt 0:15:09]} Qc7 {[%emt 0:23:27]} 16. h5 {[%emt 0:05:13]} gxh5 {[%emt 0:10:10]} 17. dxc6 {[%emt 0:04:08]} Nxc5 {[%emt 0:03:37]} 18. Nd5 {[%emt 0:01:46]} Qf7 {[%emt 0:00:20]} 19. Bxc5 {[%emt 0:00:44]} dxc5 {[%emt 0:01:31]} 20. Nb6 {[%emt 0:00:10]} 1-0

[Event "Chinese Team-ch Men 2025"]
[Site "Zhang Jiakou Hebei"]
[Date "2025.04.30"]
[Round "6.23"]
[White "Fang, Zelong"]
[Black "Chen, KaiLin"]
[Result "0-1"]
[Annotator "ChessBase"]
[ECO "C01"]
[WhiteElo "1633"]
[BlackElo "2329"]
[PlyCount "104"]
[EventDate "2025.04.26"]
[EventType "team-tourn"]
[EventCountry "CHN"]
[SourceTitle "playchess.com"]
[Source "ChessBase"]
[SourceQuality "1"]
[TimeControl "5400+30"]

1. e4 {[%emt 0:00:03]} e6 {[%emt 0:00:03]} 2. d4 {[%emt 0:00:10]} d5 {[%emt 0:00:04]} 3. exd5 {[%emt 0:00:05]} exd5 {[%emt 0:00:06]} 4. Bd3 {[%emt 0:00:05]} Bd6 {[%emt 0:00:08]} 5. Nf3 {[%emt 0:00:04]} Nc6 {[%emt 0:00:11]} 6. c3 {[%emt 0:00:34]} Nge7 {[%emt 0:00:06]} 7. O-O {[%emt 0:00:06]} Bg4 {[%emt 0:00:05]} 8. Re1 {[%emt 0:00:43]} Qd7 {[%emt 0:00:04]} 9. Be3 {[%emt 0:02:29]} f6 {[%emt 0:01:36]} 10. Nbd2 {[%emt 0:01:18]} O-O-O {[%emt 0:03:55]} 11. b4 {[%emt 0:00:52]} Rde8 {[%emt 0:02:08]} 12. Qa4 {[%emt 0:01:51]} Kb8 {[%emt 0:08:22]} 13. b5 {[%emt 0:01:38]} Nd8 {[%emt 0:00:07]} 14. c4 {[%emt 0:02:46]} dxc4 {[%emt 0:01:25]} 15. Qxc4 {[%emt 0:02:08]} Be6 {[%emt 0:08:02]} 16. Qa4 {[%emt 0:00:38]} Nd5 {[%emt 0:02:26]} 17. Ne4 {[%emt 0:08:12]} Bf5 {[%emt 0:14:31]} 18. Nxd6 {[%emt 0:01:27]} cxd6 {[%emt 0:00:58]} 19. Qb3 {[%emt 0:03:17]} Bxd3 {[%emt 0:01:25]} 20. Qxd3 {[%emt 0:00:08]} g5 {[%emt 0:09:35]} 21. a4 {[%emt 0:01:06]} h5 {[%emt 0:01:59]} 22. Qb3 {[%emt 0:02:21]} Qf5 {[%emt 0:03:22]} 23. Qb1 {[%emt 0:01:16]} Qxb1 {[%emt 0:02:16]} 24. Raxb1 {[%emt 0:00:07]} Ne6 {[%emt 0:02:09]} 25. g3 {[%emt 0:01:06]} Ng7 {[%emt 0:02:05]} 26. Nd2 {[%emt 0:05:49]} Nf5 {[%emt 0:01:13]} 27. Nf1 {[%emt 0:01:31]} Re6 {[%emt 0:03:44]} 28. Bd2 {[%emt 0:06:11]} Nxd4 {[%emt 0:04:03]} 29. Rxe6 {[%emt 0:00:24]} Nxe6 {[%emt 0:00:02]} 30. Re1 {[%emt 0:00:12]} Nc5 {[%emt 0:01:37]} 31. Ne3 {[%emt 0:00:47]} Nxe3 {[%emt 0:00:54]} 32. Rxe3 {[%emt 0:00:05]} Kc8 {[%emt 0:01:34]} 33. Rf3 {[%emt 0:01:14]} Kd7 {[%emt 0:05:23]} 34. Bc3 {[%emt 0:02:06]} Nxa4 {[%emt 0:02:16]} 35. Bd4 {[%emt 0:01:39]} Rf8 {[%emt 0:01:41]} 36. Bxa7 {[%emt 0:01:53]} Nc5 {[%emt 0:00:24]} 37. Rc3 {[%emt 0:00:46]} Ne4 {[%emt 0:02:25]} 38. Rd3 {[%emt 0:01:38]} Rc8 {[%emt 0:00:18]} 39. Be3 {[%emt 0:00:53]} Ke6 {[%emt 0:01:29]} 40. Ra3 {[%emt 0:00:55]} d5 {[%emt 0:00:19]} 41. Ra7 {[%emt 0:00:47]} Nd6 {[%emt 0:00:16]} 42. b6 {[%emt 0:01:03]} Rc4 {[%emt 0:00:14]} 43. Kf1 {[%emt 0:04:51]} d4 {[%emt 0:00:51]} 44. Bd2 {[%emt 0:00:04]} Rc6 {[%emt 0:00:55]} 45. Ra4 {[%emt 0:00:56]} Kd5 {[%emt 0:00:51]} 46. f4 {[%emt 0:01:32]} Nc4 {[%emt 0:00:59]} 47. Be1 {[%emt 0:00:43]} gxf4 {[%emt 0:01:05]} 48. gxf4 {[%emt 0:00:12]} Rxb6 {[%emt 0:00:03]} 49. Ra8 {[%emt 0:00:12]} Ke4 {[%emt 0:00:36]} 50. Re8+ {[%emt 0:00:23]} Kf3 {[%emt 0:00:16]} 51. Rd8 {[%emt 0:00:11]} Ne3+ {[%emt 0:00:07]} 52. Kg1 {[%emt 0:00:05]} Rb1 {[%emt 0:00:03]} 0-1

[Event "Chinese Team-ch Men 2025"]
[Site "Zhang Jiakou Hebei"]
[Date "2025.04.30"]
[Round "6.25"]
[White "Chen, Qi b"]
[Black "Lin, Weiguo"]
[Result "1-0"]
[Annotator "ChessBase"]
[ECO "B44"]
[WhiteElo "2482"]
[BlackElo "2382"]
[PlyCount "87"]
[EventDate "2025.04.26"]
[EventType "team-tourn"]
[EventCountry "CHN"]
[SourceTitle "playchess.com"]
[Source "ChessBase"]
[SourceQuality "1"]
[TimeControl "5400+30"]

1. e4 {[%emt 0:00:02]} c5 {[%emt 0:00:06]} 2. Nf3 {[%emt 0:00:04]} e6 {[%emt 0:00:08]} 3. d4 {[%emt 0:00:06]} cxd4 {[%emt 0:00:07]} 4. Nxd4 {[%emt 0:00:02]} Nc6 {[%emt 0:00:06]} 5. Bf4 {[%emt 0:00:15]} d6 {[%emt 0:01:20]} 6. Bb5 {[%emt 0:00:08]} Bd7 {[%emt 0:00:48]} 7. Nxc6 {[%emt 0:00:10]} bxc6 {[%emt 0:03:23]} 8. Bd3 {[%emt 0:00:05]} e5 {[%emt 0:00:20]} 9. Bd2 {[%emt 0:00:11]} Nf6 {[%emt 0:02:47]} 10. c4 {[%emt 0:01:44]} Be7 {[%emt 0:01:17]} 11. O-O {[%emt 0:00:29]} O-O {[%emt 0:00:08]} 12. Nc3 {[%emt 0:03:26]} Be6 {[%emt 0:01:31]} 13. Re1 {[%emt 0:02:40]} a5 {[%emt 0:03:49]} 14. Qc2 {[%emt 0:04:32]} Nd7 {[%emt 0:02:23]} 15. Rad1 {[%emt 0:04:32]} Nc5 {[%emt 0:01:41]} 16. b3 {[%emt 0:11:50]} Bd7 {[%emt 0:05:22]} 17. Be3 {[%emt 0:04:47]} Qc7 {[%emt 0:02:04]} 18. Bf1 {[%emt 0:03:38]} Rab8 {[%emt 0:02:25]} 19. Qc1 {[%emt 0:03:09]} Be6 {[%emt 0:02:54]} 20. h3 {[%emt 0:01:41]} Rfe8 {[%emt 0:00:57]} 21. Re2 {[%emt 0:04:22]} Bf8 {[%emt 0:00:30]} 22. Red2 {[%emt 0:02:14]} h6 {[%emt 0:14:09]} 23. g3 {[%emt 0:03:13]} Bc8 {[%emt 0:04:23]} 24. Bg2 {[%emt 0:01:07]} Ne6 {[%emt 0:03:48]} 25. f4 {[%emt 0:05:27]} exf4 {[%emt 0:01:05]} 26. gxf4 {[%emt 0:00:03]} Qe7 {[%emt 0:00:55]} 27. f5 {[%emt 0:02:44]} Nc5 {[%emt 0:04:03]} 28. Bf4 {[%emt 0:02:08]} Qa7 {[%emt 0:00:46]} 29. Kh1 {[%emt 0:01:01]} a4 {[%emt 0:00:17]} 30. bxa4 {[%emt 0:02:49]} Rb4 {[%emt 0:05:59]} 31. Bxd6 {[%emt 0:01:09]} Rxc4 {[%emt 0:02:24]} 32. Bxf8 {[%emt 0:00:31]} Rxf8 {[%emt 0:10:31]} 33. f6 {[%emt 0:07:32]} Qa5 {[%emt 0:01:49]} 34. fxg7 {[%emt 0:01:09]} Kxg7 {[%emt 0:00:10]} 35. Rc2 {[%emt 0:00:16]} Kh7 {[%emt 0:06:16]} 36. Bf1 {[%emt 0:03:28]} Rxc3 {[%emt 0:03:51]} 37. Rxc3 {[%emt 0:00:19]} Nxe4 {[%emt 0:00:02]} 38. Bd3 {[%emt 0:04:33]} Bf5 {[%emt 0:05:55]} 39. Qf4 {[%emt 0:00:13]} Bg6 {[%emt 0:00:59]} 40. Rcc1 {[%emt 0:04:52]} Re8 {[%emt 0:01:18]} 41. Kh2 {[%emt 0:02:04]} Qxa4 {[%emt 0:00:51]} 42. Rc2 {[%emt 0:00:54]} Qa3 {[%emt 0:04:41]} 43. Rg2 {[%emt 0:01:06]} f5 {[%emt 0:00:41]} 44. Bxe4 {[%emt 0:01:18]} 1-0

[Event "Chinese Team-ch Men 2025"]
[Site "Zhang Jiakou Hebei"]
[Date "2025.04.30"]
[Round "6.26"]
[White "Yu, Zhe"]
[Black "Chen, Hongsen"]
[Result "1/2-1/2"]
[Annotator "ChessBase"]
[ECO "B12"]
[WhiteElo "1837"]
[BlackElo "2402"]
[PlyCount "79"]
[EventDate "2025.04.26"]
[EventType "team-tourn"]
[EventCountry "CHN"]
[SourceTitle "playchess.com"]
[Source "ChessBase"]
[SourceQuality "1"]
[TimeControl "5400+30"]

1. e4 {[%emt 0:00:21]} c6 {[%emt 0:00:07]} 2. d4 {[%emt 0:00:06]} d5 {[%emt 0:00:03]} 3. f3 {[%emt 0:01:33]} e6 {[%emt 0:00:07]} 4. Nc3 {[%emt 0:00:06]} Bb4 {[%emt 0:00:30]} 5. Bd2 {[%emt 0:00:19]} Ne7 {[%emt 0:09:19]} 6. Bd3 {[%emt 0:12:17]} c5 {[%emt 0:06:24]} 7. a3 {[%emt 0:00:53]} Bxc3 {[%emt 0:00:18]} 8. Bxc3 {[%emt 0:06:34]} c4 {[%emt 0:00:14]} 9. Be2 {[%emt 0:00:54]} Nbc6 {[%emt 0:02:48]} 10. a4 {[%emt 0:00:45]} Ng6 {[%emt 0:03:04]} 11. Nh3 {[%emt 0:01:13]} dxe4 {[%emt 0:03:57]} 12. fxe4 {[%emt 0:03:50]} e5 {[%emt 0:00:06]} 13. dxe5 {[%emt 0:01:41]} Bxh3 {[%emt 0:01:08]} 14. Qxd8+ {[%emt 0:01:30]} Rxd8 {[%emt 0:00:06]} 15. gxh3 {[%emt 0:00:05]} Ngxe5 {[%emt 0:02:30]} 16. Kf2 {[%emt 0:01:26]} f6 {[%emt 0:02:16]} 17. Rad1 {[%emt 0:03:31]} Ke7 {[%emt 0:02:53]} 18. Rd5 {[%emt 0:06:54]} Rd6 {[%emt 0:05:41]} 19. Rhd1 {[%emt 0:02:01]} Rhd8 {[%emt 0:00:13]} 20. Ke3 {[%emt 0:03:29]} a6 {[%emt 0:04:36]} 21. b3 {[%emt 0:21:08]} cxb3 {[%emt 0:16:20]} 22. cxb3 {[%emt 0:00:02]} Ke6 {[%emt 0:00:37]} 23. Bc4 {[%emt 0:22:29]} Nxc4+ {[%emt 0:11:59]} 24. bxc4 {[%emt 0:00:01]} R6d7 {[%emt 0:03:40]} 25. R1d2 {[%emt 0:03:14]} Ne7 {[%emt 0:02:00]} 26. Ba5 {[%emt 0:01:52]} Nxd5+ {[%emt 0:01:27]} 27. exd5+ {[%emt 0:01:05]} Ke5 {[%emt 0:06:20]} 28. Bxd8 {[%emt 0:00:12]} Rxd8 {[%emt 0:00:05]} 29. Rb2 {[%emt 0:00:29]} Rd7 {[%emt 0:00:53]} 30. Kd3 {[%emt 0:00:50]} Re7 {[%emt 0:10:26]} 31. Re2+ {[%emt 0:02:09]} Kd6 {[%emt 0:00:04]} 32. c5+ {[%emt 0:00:21]} Kd7 {[%emt 0:00:02]} 33. Rb2 {[%emt 0:00:44]} Kc8 {[%emt 0:00:26]} 34. d6 {[%emt 0:01:28]} Re5 {[%emt 0:02:14]} 35. Kd4 {[%emt 0:00:20]} Re1 {[%emt 0:03:51]} 36. Kd5 {[%emt 0:00:21]} Re5+ {[%emt 0:00:11]} 37. Kd4 {[%emt 0:00:11]} Re1 {[%emt 0:00:04]} 38. Kd5 {[%emt 0:01:39]} Re5+ {[%emt 0:00:07]} 39. Kc4 {[%emt 0:01:11]} Re3 {[%emt 0:01:16]} 40. Kd5 {[%emt 0:00:28]} 1/2-1/2

[Event "Chinese Team-ch Men 2025"]
[Site "Zhang Jiakou Hebei"]
[Date "2025.04.30"]
[Round "6.27"]
[White "Jin, Hongtao"]
[Black "Zhai, Bugong"]
[Result "1-0"]
[Annotator "ChessBase"]
[ECO "B69"]
[WhiteElo "2343"]
[BlackElo "1661"]
[PlyCount "69"]
[EventDate "2025.04.26"]
[EventType "team-tourn"]
[EventCountry "CHN"]
[SourceTitle "playchess.com"]
[Source "ChessBase"]
[SourceQuality "1"]
[TimeControl "5400+30"]

1. e4 {[%emt 0:00:04]} c5 {[%emt 0:00:09]} 2. Nf3 {[%emt 0:00:08]} d6 {[%emt 0:00:08]} 3. d4 {[%emt 0:00:17]} cxd4 {[%emt 0:00:11]} 4. Nxd4 {[%emt 0:00:06]} Nf6 {[%emt 0:00:05]} 5. Nc3 {[%emt 0:00:14]} Nc6 {[%emt 0:00:06]} 6. Bg5 {[%emt 0:01:01]} e6 {[%emt 0:00:33]} 7. Qd2 {[%emt 0:00:19]} a6 {[%emt 0:00:18]} 8. O-O-O {[%emt 0:01:03]} Bd7 {[%emt 0:00:10]} 9. f4 {[%emt 0:00:51]} Be7 {[%emt 0:00:31]} 10. Nf3 {[%emt 0:00:51]} b5 {[%emt 0:00:19]} 11. Bxf6 {[%emt 0:00:31]} gxf6 {[%emt 0:00:17]} 12. f5 {[%emt 0:00:12]} Qb6 {[%emt 0:00:12]} 13. Kb1 {[%emt 0:04:11]} O-O-O {[%emt 0:00:48]} 14. g3 {[%emt 0:00:37]} h5 {[%emt 0:03:38]} 15. Bh3 {[%emt 0:08:27]} Kb8 {[%emt 0:00:11]} 16. fxe6 {[%emt 0:04:17]} fxe6 {[%emt 0:00:13]} 17. Ne2 {[%emt 0:00:18]} Ne5 {[%emt 0:11:02]} 18. Nfd4 {[%emt 0:00:54]} Nc4 {[%emt 0:13:20]} 19. Qd3 {[%emt 0:16:22]} d5 {[%emt 0:13:07]} 20. exd5 {[%emt 0:02:49]} e5 {[%emt 0:00:05]} 21. Bxd7 {[%emt 0:02:26]} exd4 {[%emt 0:13:14]} 22. Be6 {[%emt 0:03:45]} Ne3 {[%emt 0:05:30]} 23. Nxd4 {[%emt 0:02:25]} Nxd1 {[%emt 0:00:21]} 24. Rxd1 {[%emt 0:00:02]} Bc5 {[%emt 0:05:55]} 25. Nc6+ {[%emt 0:11:03]} Qxc6 {[%emt 0:00:07]} 26. dxc6 {[%emt 0:00:02]} Rxd3 {[%emt 0:00:06]} 27. cxd3 {[%emt 0:00:03]} Bd4 {[%emt 0:00:06]} 28. Re1 {[%emt 0:01:24]} Kc7 {[%emt 0:00:07]} 29. Bd7 {[%emt 0:01:46]} Rg8 {[%emt 0:06:45]} 30. Re7 {[%emt 0:03:27]} Rg5 {[%emt 0:05:09]} 31. Be8+ {[%emt 0:01:22]} Kc8 {[%emt 0:02:27]} 32. Bf7 {[%emt 0:00:51]} Rc5 {[%emt 0:01:51]} 33. Be6+ {[%emt 0:00:06]} Kd8 {[%emt 0:03:13]} 34. Rd7+ {[%emt 0:00:07]} Ke8 {[%emt 0:00:03]} 35. Rxd4 {[%emt 0:00:17]} 1-0

[Event "Chinese Team-ch Men 2025"]
[Site "Zhang Jiakou Hebei"]
[Date "2025.04.30"]
[Round "6.29"]
[White "Wan, Yunguo"]
[Black "Fan, Yupan"]
[Result "1-0"]
[Annotator "ChessBase"]
[ECO "B60"]
[WhiteElo "2500"]
[BlackElo "1527"]
[PlyCount "61"]
[EventDate "2025.04.26"]
[EventType "team-tourn"]
[EventCountry "CHN"]
[SourceTitle "playchess.com"]
[Source "ChessBase"]
[SourceQuality "1"]
[TimeControl "5400+30"]

1. e4 {[%emt 0:00:05]} c5 {[%emt 0:00:11]} 2. Nf3 {[%emt 0:00:14]} d6 {[%emt 0:00:08]} 3. d4 {[%emt 0:00:29]} cxd4 {[%emt 0:00:02]} 4. Nxd4 {[%emt 0:00:10]} Nf6 {[%emt 0:00:09]} 5. Nc3 {[%emt 0:00:09]} Nc6 {[%emt 0:00:05]} 6. Bg5 {[%emt 0:00:29]} e5 {[%emt 0:02:03]} 7. Bxf6 {[%emt 0:01:30]} gxf6 {[%emt 0:00:33]} 8. Nf5 {[%emt 0:01:14]} Bxf5 {[%emt 0:02:44]} 9. exf5 {[%emt 0:00:18]} Nd4 {[%emt 0:01:37]} 10. Bc4 {[%emt 0:03:19]} Rc8 {[%emt 0:29:56]} 11. Bb3 {[%emt 0:03:11]} Qa5 {[%emt 0:20:21]} 12. O-O {[%emt 0:01:22]} h5 {[%emt 0:12:06]} 13. Nd5 {[%emt 0:07:42]} Be7 {[%emt 0:01:34]} 14. c3 {[%emt 0:00:34]} Nc6 {[%emt 0:05:55]} 15. Qf3 {[%emt 0:00:36]} Kd7 {[%emt 0:01:09]} 16. Rad1 {[%emt 0:01:12]} Rcg8 {[%emt 0:02:35]} 17. Rd3 {[%emt 0:00:31]} Rg4 {[%emt 0:00:52]} 18. Re1 {[%emt 0:05:52]} Rhg8 {[%emt 0:00:42]} 19. g3 {[%emt 0:00:25]} Qd8 {[%emt 0:06:45]} 20. h3 {[%emt 0:05:32]} R4g5 {[%emt 0:02:40]} 21. Red1 {[%emt 0:00:46]} Bf8 {[%emt 0:02:23]} 22. Ne3 {[%emt 0:01:10]} Qe8 {[%emt 0:00:45]} 23. Qe4 {[%emt 0:01:02]} Kc8 {[%emt 0:04:22]} 24. Nc4 {[%emt 0:00:37]} Kb8 {[%emt 0:01:07]} 25. Nxd6 {[%emt 0:00:33]} Bxd6 {[%emt 0:00:17]} 26. Rxd6 {[%emt 0:00:07]} Qf8 {[%emt 0:01:32]} 27. Rd7 {[%emt 0:02:19]} Qg7 {[%emt 0:00:12]} 28. R1d3 {[%emt 0:00:34]} Rf8 {[%emt 0:00:31]} 29. Ba4 {[%emt 0:00:26]} Rc8 {[%emt 0:00:28]} 30. Bxc6 {[%emt 0:00:09]} Rxc6 {[%emt 0:00:10]} 31. Rd8+ {[%emt 0:00:06]} 1-0